bitfinex/quotes_BTCUSD_20260101
["timestamp","ask_amount","ask_price","bid_price","bid_amount"]
[1767285242301,0.05334069,88026.0,88013.0,0.01136195]
[1767285242518,0.03593623,88025.0,88018.0,0.000349]
[1767285242645,0.02453623,88024.0,88018.0,0.0002922]
[1767285242843,0.02453623,88024.0,88015.0,0.01136169]
[1767285243086,0.02453623,88024.0,88016.0,0.01136157]
[1767285243677,0.02453623,88024.0,88015.0,0.01136169]
[1767285245064,0.02453623,88024.0,88016.0,0.01136157]
[1767285245243,0.02453623,88024.0,88015.0,0.01136169]
[1767285245848,0.02453623,88024.0,88016.0,0.01136157]
[1767285246255,0.02453623,88024.0,88015.0,0.01136169]
[1767285246453,0.02453623,88024.0,88016.0,0.01136157]
[1767285246655,0.02453623,88024.0,88017.0,0.01136144]
[1767285247842,0.02453623,88024.0,88013.0,0.01136195]
[1767285248047,0.49724168,88023.0,88011.0,0.05681047]
[1767285248252,0.44390099,88020.0,88014.0,0.01136182]
[1767285248452,0.05334069,88023.0,88014.0,0.01136182]
[1767285248671,0.05334069,88023.0,88013.0,0.01136195]
[1767285248881,0.05334069,88023.0,88014.0,0.01136182]
[1767285249106,0.05334069,88023.0,88011.0,0.05681047]
[1767285249107,0.05334069,88023.0,88011.0,0.01136221]
[1767285249270,0.44390099,88021.0,88013.0,0.01136195]
[1767285249472,0.49724168,88023.0,88012.0,0.01136208]
[1767285249674,0.49724168,88023.0,88011.0,0.01136221]
[1767285249911,0.44390099,88021.0,88013.0,0.01136195]
[1767285250065,0.49724168,88023.0,88014.0,0.01136182]
[1767285251122,0.49724168,88023.0,88015.0,0.01136169]
[1767285251354,0.05334069,88023.0,88015.0,0.01136169]
[1767285251619,0.05334069,88023.0,88008.0,0.0113626]
[1767285251821,0.44390099,88020.0,88012.0,0.01136208]
[1767285251996,0.44390099,88022.0,88010.0,0.01136234]
[1767285252177,0.44390099,88020.0,88011.0,0.01136221]
[1767285252554,0.05334069,88019.0,88010.0,0.01136234]
[1767285253280,0.05334069,88019.0,88011.0,0.01136221]
[1767285253453,0.05334069,88019.0,88010.0,0.01136234]
[1767285253658,0.05334069,88019.0,88004.0,0.01136311]
[1767285253921,0.44390099,88014.0,88005.0,0.01136299]
[1767285254135,0.44390099,88014.0,88006.0,0.01136286]
[1767285254822,0.44390099,88014.0,88005.0,0.01136299]
[1767285254967,0.05334069,88019.0,88003.0,0.02276324]
[1767285255202,0.44390099,88013.0,88004.0,0.01136311]
[1767285255370,0.44390099,88013.0,88003.0,0.02276324]
[1767285255687,0.44390099,88013.0,88004.0,0.01136311]
[1767285256037,0.44390099,88013.0,88005.0,0.01136299]
[1767285256375,0.44390099,88013.0,88004.0,0.01136311]
[1767285256794,0.44390099,88013.0,88005.0,0.01136299]
[1767285257218,0.44390099,88015.0,88005.0,0.01136299]
[1767285258449,0.44390099,88015.0,88004.0,0.01136311]
[1767285258787,0.44390099,88015.0,88005.0,0.01136299]
[1767285259305,0.44390099,88015.0,88006.0,0.01136286]
[1767285259933,0.44390099,88015.0,88005.0,0.01136299]
[1767285260562,0.44390099,88015.0,88006.0,0.01136286]
[1767285260765,0.44390099,88015.0,88007.0,0.01136273]
[1767285260959,0.44390099,88015.0,88003.0,0.07957932]
[1767285260960,0.44390099,88015.0,88003.0,0.02276324]
[1767285261162,0.44390099,88013.0,88005.0,0.01136299]
[1767285261360,0.44390099,88015.0,88006.0,0.01136286]
[1767285261760,0.44390099,88015.0,88007.0,0.01136273]
[1767285261960,0.44390099,88015.0,88006.0,0.01136286]
[1767285262161,0.44390099,88015.0,88007.0,0.01136273]
[1767285262457,0.44390099,88015.0,88008.0,0.0113626]
[1767285262675,0.44390099,88015.0,88007.0,0.01136273]
[1767285263235,0.44390099,88015.0,88008.0,0.0113626]
[1767285263437,0.44390099,88015.0,88007.0,0.01136273]
[1767285263642,0.44390099,88015.0,88005.0,0.01136299]
[1767285264703,0.44390099,88015.0,88006.0,0.01136286]
[1767285265110,0.44390099,88015.0,88007.0,0.01136273]
[1767285265313,0.49724168,88017.0,88007.0,0.01136273]
[1767285266414,0.49724168,88017.0,88006.0,0.01136286]
[1767285268613,0.05334069,88017.0,88008.0,0.0113626]
[1767285268790,0.05334069,88017.0,88007.0,0.01136273]
[1767285269946,0.05334069,88017.0,88006.0,0.01136286]
[1767285270362,0.44390099,88016.0,88006.0,0.01136286]
[1767285270978,0.44390099,88016.0,88007.0,0.01136273]
[1767285271408,0.44390099,88016.0,88008.0,0.0113626]
[1767285271745,0.44390099,88016.0,88007.0,0.01136273]
[1767285274218,0.44390099,88016.0,88008.0,0.0113626]
[1767285274718,0.44390099,88016.0,88007.0,0.01136273]
[1767285275791,0.44390099,88016.0,88008.0,0.0113626]
[1767285275997,0.44390099,88016.0,88007.0,0.01136273]
[1767285276198,0.44390099,88016.0,88008.0,0.0113626]
[1767285276431,0.45530099,88018.0,88007.0,0.01136273]
[1767285276971,0.45530099,88018.0,88008.0,0.0113626]
[1767285277165,0.45530099,88018.0,88007.0,0.01136273]
[1767285277352,0.45530099,88018.0,88008.0,0.0113626]
[1767285277869,0.45530099,88018.0,88007.0,0.01136273]
[1767285280200,0.45530099,88018.0,88008.0,0.0113626]
[1767285280486,0.0114,88018.0,88008.0,0.0113626]
[1767285280690,0.0114,88018.0,88009.0,0.01136247]
[1767285282609,0.0114,88018.0,88010.0,0.01136234]
[1767285283025,0.0114,88018.0,88009.0,0.01136247]
[1767285283400,0.0245684,88017.0,88010.0,0.01136234]
[1767285283776,0.0245684,88017.0,88009.0,0.01136247]
[1767285284292,0.0245684,88017.0,88010.0,0.01136234]
[1767285284493,0.0245684,88017.0,88009.0,0.01136247]
[1767285284689,0.0245684,88017.0,88010.0,0.01136234]
[1767285284935,0.0245684,88017.0,88009.0,0.01136247]
[1767285285363,0.0245684,88017.0,88010.0,0.01136234]
[1767285285546,0.0245684,88017.0,88009.0,0.01136247]
[1767285285847,0.0242764,88017.0,88012.0,0.01136208]
[1767285286332,0.0242764,88017.0,88010.0,0.06817406]
[1767285286548,0.0242764,88017.0,88011.0,0.01136221]
[1767285286751,0.0242764,88017.0,88012.0,0.01136208]
[1767285286956,0.0242764,88017.0,88011.0,0.01136221]
[1767285287162,0.0242764,88017.0,88010.0,0.01136234]
[1767285287361,0.0242764,88017.0,88011.0,0.01136221]
[1767285287816,0.0242764,88017.0,88009.0,0.01136247]
[1767285288044,0.0242764,88017.0,88010.0,0.01136234]
[1767285288437,0.0242764,88017.0,88011.0,0.01136221]
[1767285289359,0.0242764,88017.0,88010.0,0.01136234]
[1767285289765,0.0242764,88017.0,88011.0,0.01136221]
[1767285290086,0.0242764,88017.0,88010.0,0.01136234]
[1767285290291,0.0242764,88017.0,88011.0,0.01136221]
[1767285291274,0.0242764,88017.0,88009.0,0.01136247]
[1767285291944,0.0242764,88017.0,88010.0,0.01136234]
[1767285292144,0.0114,88018.0,88010.0,0.01136234]
[1767285293388,0.0114,88018.0,88009.0,0.01136247]
[1767285293590,0.0114,88018.0,88010.0,0.01136234]
[1767285294401,0.0114,88018.0,88009.0,0.01136247]
[1767285294924,0.0114,88018.0,88008.0,0.0113626]
[1767285295099,0.45530099,88018.0,88008.0,0.0113626]
[1767285295296,0.45530099,88018.0,88007.0,0.01136273]
[1767285295506,0.44390099,88017.0,88007.0,0.01136273]
[1767285295922,0.44390099,88017.0,88008.0,0.0113626]
[1767285296822,0.44390099,88017.0,88007.0,0.01136273]
[1767285297604,0.49440513,88017.0,88007.0,0.01136273]
[1767285297813,0.49440513,88017.0,88008.0,0.0113626]
[1767285298013,0.05050414,88017.0,88009.0,0.01136247]
[1767285298571,0.0114,88018.0,88008.0,0.0113626]
[1767285298714,0.02457107,88017.0,88008.0,0.0113626]
[1767285299592,0.02457107,88017.0,88009.0,0.01136247]
[1767285300713,0.02457107,88017.0,88010.0,0.06817393]
[1767285300878,0.45530099,88020.0,88010.0,0.01136234]
[1767285301105,0.02456703,88019.0,88010.0,0.01136234]
[1767285301369,0.02456703,88019.0,88012.0,0.05681043]
[1767285301580,0.02456703,88019.0,88011.0,0.01136221]
[1767285301581,0.03069045,88034.0,88022.0,0.05680334]
[1767285301861,0.00075283,88035.0,88024.0,0.01136053]
[1767285301862,0.0106639,88032.0,88024.0,0.01136053]
[1767285302100,0.00075283,88035.0,88024.0,0.01136053]
[1767285302722,0.44390099,88034.0,88024.0,0.01136053]
[1767285302928,0.44390099,88034.0,88023.0,0.01136066]
[1767285303744,0.44390099,88034.0,88024.0,0.01136053]
[1767285303877,0.44390099,88034.0,88025.0,0.0113604]
[1767285304083,0.00075283,88035.0,88025.0,0.0113604]
[1767285304297,0.00075283,88035.0,88024.0,0.01136053]
[1767285304481,0.00075283,88035.0,88025.0,0.0113604]
[1767285304905,0.00075283,88035.0,88027.0,0.01136015]
[1767285305126,0.00075283,88035.0,88028.0,0.01136002]
[1767285305282,0.00075283,88035.0,88029.0,0.01135989]
[1767285305751,0.00075283,88035.0,88028.0,0.01136002]
[1767285305957,0.00075283,88035.0,88029.0,0.01135989]
[1767285306360,0.00075283,88035.0,88027.0,0.01136015]
[1767285307330,0.00075283,88035.0,88028.0,0.01136002]
[1767285307643,0.00075283,88035.0,88026.0,0.01136027]
[1767285307986,0.00075283,88035.0,88025.0,0.0113604]
[1767285308237,0.00075283,88035.0,88026.0,0.01136027]
[1767285308478,0.00075283,88035.0,88027.0,0.01136015]
[1767285308859,0.00075283,88035.0,88026.0,0.01136027]
[1767285309275,0.00075283,88035.0,88027.0,0.01136015]
[1767285309480,0.00075283,88035.0,88026.0,0.01136027]
[1767285310039,0.00075283,88035.0,88027.0,0.01136015]
[1767285310236,0.00075283,88035.0,88026.0,0.01136027]
[1767285310806,0.00075283,88035.0,88027.0,0.01136015]
[1767285311883,0.00075283,88035.0,88028.0,0.01136002]
[1767285312692,0.00075283,88035.0,88029.0,0.01135989]
[1767285312912,0.00075283,88035.0,88028.0,0.01136002]
[1767285313766,0.00075283,88035.0,88026.0,0.01136027]
[1767285313890,0.00075283,88035.0,88027.0,0.01136015]
[1767285314529,0.00075283,88035.0,88028.0,0.01136002]
[1767285316595,0.00075283,88035.0,88026.0,0.01136027]
[1767285317014,0.00075283,88035.0,88029.0,0.01135989]
[1767285317214,0.00075283,88035.0,88027.0,0.01136015]
[1767285318154,0.00075283,88035.0,88026.0,0.01136027]
[1767285318352,0.00075283,88035.0,88028.0,0.01136002]
[1767285318575,0.00075283,88035.0,88027.0,0.01136015]
[1767285318718,0.00075283,88035.0,88028.0,0.01136002]
[1767285319218,0.00075283,88035.0,88025.0,0.0113604]
[1767285319429,0.00075283,88035.0,88026.0,0.01136027]
[1767285319673,0.00075283,88035.0,88024.0,0.01136053]
[1767285320098,0.00075283,88035.0,88025.0,0.0113604]
[1767285320436,0.00075283,88035.0,88026.0,0.01136027]
[1767285320732,0.00075283,88035.0,88025.0,0.0113604]
[1767285320962,0.00075283,88035.0,88026.0,0.01136027]
[1767285321564,0.00075283,88035.0,88025.0,0.0113604]
[1767285321758,0.05050414,88024.0,88020.0,0.0114]
[1767285323347,0.05050414,88024.0,88014.0,0.0114]
[1767285326582,0.04957285,88023.0,88014.0,0.0114]
[1767285330082,0.04957285,88023.0,88014.0,0.02276182]
[1767285330276,0.04957285,88023.0,88014.0,0.0114]
[1767285331178,0.04957285,88023.0,88014.0,0.02276182]
[1767285331351,0.04957285,88023.0,88015.0,0.01136169]
[1767285331590,0.04957285,88023.0,88014.0,0.02276182]
[1767285331801,0.04957285,88023.0,88014.0,0.0114]
[1767285332230,0.04957285,88023.0,88014.0,0.02276182]
[1767285332443,0.04957285,88023.0,88015.0,0.01136169]
[1767285332626,0.04957285,88023.0,88014.0,0.02276182]
[1767285332860,0.04957285,88023.0,88015.0,0.01136169]
[1767285333675,0.04957285,88023.0,88016.0,0.01136157]
[1767285334828,0.04957285,88023.0,88015.0,0.01136169]
[1767285335369,0.04957285,88023.0,88014.0,0.02276182]
[1767285335551,0.04957285,88023.0,88015.0,0.01136169]
[1767285337528,0.04957285,88023.0,88016.0,0.01136157]
[1767285337913,0.04957285,88023.0,88015.0,0.01136169]
[1767285339357,0.04957285,88023.0,88014.0,0.02276182]
[1767285339548,0.04957285,88023.0,88015.0,0.01136169]
[1767285339732,0.04957285,88023.0,88014.0,0.02276182]
[1767285339956,0.04957285,88023.0,88015.0,0.01136169]
[1767285340159,0.04957285,88023.0,88014.0,0.0114]
[1767285340359,0.04957285,88023.0,88014.0,0.02276182]
[1767285340688,0.04957285,88023.0,88014.0,0.0114]
[1767285341207,0.04957285,88023.0,88014.0,0.02276182]
[1767285341401,0.04957285,88023.0,88014.0,0.0114]
[1767285343307,0.04957285,88023.0,88014.0,0.02276182]
[1767285344246,0.04957285,88023.0,88015.0,0.01136169]
[1767285344450,0.04957285,88023.0,88014.0,0.02276182]
[1767285345789,0.04957285,88023.0,88015.0,0.01136169]
[1767285346264,0.04957285,88023.0,88014.0,0.02276182]
[1767285347299,0.04957285,88028.0,88014.0,0.02276182]
[1767285348289,0.04957285,88028.0,88014.0,0.0114]
[1767285349937,0.44375001,88024.0,88014.0,0.0114]
[1767285350369,0.44375001,88024.0,88014.0,0.02276182]
[1767285350576,0.44375001,88024.0,88014.0,0.0114]
[1767285350778,0.44375001,88024.0,88014.0,0.02276182]
[1767285352455,0.04957285,88028.0,88015.0,0.01136169]
[1767285352862,0.04957285,88028.0,88016.0,0.01136157]
[1767285353378,0.04957285,88028.0,88017.0,0.01136144]
[1767285353827,0.000549,88017.0,88014.0,0.0114]
[1767285354051,0.04663693,88026.0,88014.0,0.0114]
[1767285354471,0.04663693,88026.0,88014.0,0.02276182]
[1767285354670,0.04663693,88026.0,88014.0,0.0114]
[1767285354920,0.04663693,88026.0,88014.0,0.02276182]
[1767285355134,0.04663693,88026.0,88015.0,0.01136169]
[1767285356350,0.04663693,88026.0,88018.0,0.01136131]
[1767285356702,0.04663693,88026.0,88017.0,0.01136144]
[1767285358137,0.04663693,88026.0,88018.0,0.01136131]
[1767285358352,0.04663693,88026.0,88017.0,0.01136144]
[1767285358565,0.04663693,88026.0,88016.0,0.01136157]
[1767285360329,0.04663693,88026.0,88015.0,0.01136169]
[1767285360506,0.04663693,88026.0,88016.0,0.01136157]
[1767285360864,0.04663693,88026.0,88017.0,0.01136144]
[1767285361302,0.04663693,88026.0,88018.0,0.01136131]
[1767285361500,0.0114,88029.0,88020.0,0.01136105]
[1767285361925,0.01136,88028.0,88020.0,0.01136105]
[1767285362105,0.01136,88028.0,88019.0,0.01136118]
[1767285362525,0.01136,88028.0,88020.0,0.01136105]
[1767285362727,0.01136,88028.0,88019.0,0.01136118]
[1767285362901,0.01136,88028.0,88020.0,0.01136105]
[1767285363438,0.01136,88028.0,88021.0,0.01136092]
[1767285364126,0.01136,88028.0,88019.0,0.01136118]
[1767285364462,0.01136,88028.0,88020.0,0.01136105]
[1767285365913,0.01136,88028.0,88018.0,0.01136131]
[1767285366118,0.05799693,88028.0,88018.0,0.01136131]
[1767285366974,0.05799693,88028.0,88017.0,0.01136144]
[1767285368669,0.05799693,88028.0,88016.0,0.01136157]
[1767285369615,0.05799693,88028.0,88017.0,0.01136144]
[1767285369819,0.05799693,88028.0,88016.0,0.01136157]
[1767285370016,0.05799693,88028.0,88017.0,0.01136144]
[1767285370638,0.05799693,88028.0,88016.0,0.01136157]
[1767285370915,0.05799693,88028.0,88017.0,0.01136144]
[1767285371156,0.01136,88028.0,88018.0,0.01136131]
[1767285372044,0.01136,88028.0,88019.0,0.01136118]
[1767285372237,0.01136,88028.0,88018.0,0.01136131]
[1767285372452,0.01136,88028.0,88017.0,0.06112981]
[1767285372651,0.01136,88028.0,88019.0,0.01136118]
[1767285372866,0.01136,88028.0,88018.0,0.01136131]
[1767285374283,0.01136,88028.0,88019.0,0.01136118]
[1767285374512,0.01136,88028.0,88018.0,0.01136131]
[1767285375090,0.01136,88028.0,88017.0,0.06112981]
[1767285375734,0.01136,88028.0,88017.0,0.01136144]
[1767285377976,0.05799693,88028.0,88016.0,0.01136157]
[1767285378319,0.05799693,88028.0,88017.0,0.01136144]
[1767285379889,0.05799693,88028.0,88018.0,0.01136131]
[1767285380117,0.05799693,88028.0,88017.0,0.01136144]
[1767285380408,0.05799693,88028.0,88018.0,0.01136131]
[1767285380615,0.05799693,88028.0,88017.0,0.01136144]
[1767285381305,0.05799693,88028.0,88018.0,0.01136131]
[1767285381534,0.05799693,88028.0,88017.0,0.01136144]
[1767285381771,0.05799693,88028.0,88018.0,0.01136131]
[1767285382297,0.05799693,88028.0,88019.0,0.01136118]
[1767285382819,0.05799693,88028.0,88018.0,0.01136131]
[1767285383402,0.05799693,88028.0,88019.0,0.01136118]
[1767285383675,0.05799693,88028.0,88018.0,0.01136131]
[1767285383884,0.05799693,88028.0,88019.0,0.01136118]
[1767285384158,0.05799693,88028.0,88018.0,0.01136131]
[1767285384640,0.05799693,88028.0,88019.0,0.01136118]
[1767285385478,0.01136,88028.0,88020.0,0.01136105]
[1767285386110,0.44382622,88030.0,88020.0,0.01136105]
[1767285386310,0.01136,88028.0,88020.0,0.01136105]
[1767285386489,0.01136,88028.0,88021.0,0.01136092]
[1767285386688,0.01136,88028.0,88020.0,0.01136105]
[1767285387092,0.01136,88028.0,88021.0,0.01136092]
[1767285387289,0.01136,88028.0,88020.0,0.01136105]
[1767285387878,0.01136,88028.0,88019.0,0.01136118]
[1767285388977,0.01136,88028.0,88020.0,0.01136105]
[1767285389723,0.01136,88028.0,88021.0,0.01136092]
[1767285389920,0.01136,88028.0,88020.0,0.01136105]
[1767285390344,0.01136,88028.0,88021.0,0.01136092]
[1767285390579,0.01136,88028.0,88020.0,0.01136105]
[1767285391076,0.01136,88028.0,88019.0,0.01136118]
[1767285391514,0.01136,88028.0,88020.0,0.01136105]
[1767285392831,0.01136,88028.0,88018.0,0.05680593]
[1767285393196,0.01136,88028.0,88019.0,0.01136118]
[1767285398233,0.04558887,88027.0,88019.0,0.01136118]
[1767285399457,0.04558887,88027.0,88018.0,0.06816724]
[1767285399615,0.04558887,88027.0,88019.0,0.01136118]
[1767285399932,0.04558887,88027.0,88020.0,0.01136105]
[1767285400365,0.04558887,88027.0,88019.0,0.01136118]
[1767285400498,0.04558887,88027.0,88020.0,0.01136105]
[1767285400901,0.04558887,88027.0,88021.0,0.01136092]
[1767285402568,0.04558887,88027.0,88020.0,0.01136105]
[1767285402777,0.04558887,88027.0,88021.0,0.01136092]
[1767285404384,0.04558887,88027.0,88020.0,0.01136105]
[1767285404589,0.04558887,88027.0,88021.0,0.01136092]
[1767285404794,0.04558887,88027.0,88022.0,0.01136079]
[1767285404972,0.04558887,88027.0,88021.0,0.01136092]
[1767285406288,0.04558887,88027.0,88022.0,0.01136079]
[1767285406493,0.04558887,88027.0,88020.0,0.01136105]
[1767285406968,0.04380687,88027.0,88019.0,0.04152764]
[1767285407136,0.04380687,88027.0,88020.0,0.01136105]
[1767285407955,0.04380687,88027.0,88021.0,0.01136092]
[1767285408114,0.04380687,88027.0,88020.0,0.01136105]
[1767285409377,0.04380687,88027.0,88021.0,0.01136092]
[1767285409925,0.04380687,88027.0,88020.0,0.01136105]
[1767285410384,0.04380687,88027.0,88021.0,0.01136092]
[1767285410713,0.04380687,88027.0,88020.0,0.01136105]
[1767285410913,0.04380687,88027.0,88021.0,0.01136092]
[1767285411115,0.04380687,88027.0,88022.0,0.01136079]
[1767285412322,0.04380687,88027.0,88021.0,0.01136092]
[1767285413058,0.04380687,88027.0,88022.0,0.01136079]
[1767285413267,0.04380687,88027.0,88021.0,0.01136092]
[1767285413470,0.04380687,88027.0,88022.0,0.01136079]
[1767285414008,0.04380687,88027.0,88021.0,0.01136092]
[1767285415241,0.04380687,88027.0,88020.0,0.01136105]
[1767285416160,0.04380687,88027.0,88019.0,0.01136118]
[1767285416569,0.04380687,88027.0,88020.0,0.01136105]
[1767285417007,0.04380687,88027.0,88021.0,0.01136092]
[1767285417184,0.04380687,88027.0,88019.0,0.01136118]
[1767285417834,0.04380687,88027.0,88021.0,0.01136092]
[1767285419641,0.01136,88028.0,88021.0,0.01136092]
[1767285420020,0.01136,88028.0,88020.0,0.01136105]
[1767285420250,0.01136,88028.0,88021.0,0.01136092]
[1767285420490,0.01136,88028.0,88022.0,0.01136079]
[1767285420826,0.01136,88028.0,88023.0,0.01136066]
[1767285421187,0.06024801,88028.0,88022.0,0.01136079]
[1767285421349,0.06024801,88028.0,88021.0,0.01136092]
[1767285421602,0.06024801,88028.0,88022.0,0.01136079]
[1767285422010,0.04888801,88028.0,88021.0,0.01136092]
[1767285422172,0.04888801,88028.0,88018.0,0.05680637]
[1767285422532,0.04888801,88028.0,88019.0,0.01136118]
[1767285423042,0.04888801,88028.0,88018.0,0.01136131]
[1767285423354,0.04888801,88028.0,88016.0,0.01136157]
[1767285423635,0.04888801,88028.0,88014.0,0.02276182]
[1767285423836,0.04888801,88028.0,88018.0,0.01136131]
[1767285424416,0.04888801,88028.0,88019.0,0.01136118]
[1767285424598,0.04888801,88028.0,88018.0,0.01136131]
[1767285425003,0.04888801,88028.0,88019.0,0.01136118]
[1767285426463,0.04888801,88028.0,88018.0,0.01136131]
[1767285426662,0.04888801,88028.0,88016.0,0.06816936]
[1767285427169,0.04888801,88028.0,88018.0,0.01136131]
[1767285427514,0.04888801,88028.0,88019.0,0.01136118]
[1767285427740,0.04888801,88028.0,88018.0,0.01136131]
[1767285429249,0.04888801,88028.0,88017.0,0.01136144]
[1767285429809,0.04888801,88028.0,88018.0,0.01136131]
[1767285431116,0.04888801,88028.0,88015.0,0.01136169]
[1767285431316,0.04888801,88028.0,88014.0,0.0114]
[1767285431489,0.04888801,88024.0,88014.0,0.0114]
[1767285431689,0.04888801,88024.0,88011.0,0.01136]
[1767285432032,0.04888801,88024.0,88011.0,0.02272221]
[1767285432282,0.04888801,88024.0,88013.0,0.01136195]
[1767285432478,0.04888801,88024.0,88012.0,0.01136208]
[1767285432703,0.04888801,88024.0,88011.0,0.01136]
[1767285434054,0.04824294,88024.0,88011.0,0.01136]
[1767285435525,0.04824294,88024.0,88012.0,0.01136208]
[1767285435773,0.04824294,88024.0,88013.0,0.01136195]
[1767285436333,0.04824294,88024.0,88012.0,0.01136208]
[1767285436786,0.04824294,88024.0,88013.0,0.01136195]
[1767285436918,0.04824294,88024.0,88012.0,0.01136208]
[1767285437462,0.04824294,88024.0,88011.0,0.02272221]
[1767285437700,0.04824294,88024.0,88011.0,0.01136]
[1767285437886,0.04824294,88024.0,88012.0,0.01136208]
[1767285438358,0.04824294,88024.0,88013.0,0.01136195]
[1767285438981,0.04824294,88024.0,88012.0,0.01136208]
[1767285439687,0.04824294,88024.0,88013.0,0.01136195]
[1767285440012,0.04824294,88024.0,88012.0,0.01136208]
[1767285440870,0.04824294,88024.0,88013.0,0.01136195]
[1767285441280,0.04824294,88024.0,88014.0,0.01136182]
[1767285441725,0.01136,88029.0,88014.0,0.01136182]
[1767285441938,0.02455203,88028.0,88015.0,0.01136169]
[1767285442275,0.02455203,88028.0,88016.0,0.01136157]
[1767285443473,0.02455203,88028.0,88017.0,0.01136144]
[1767285444846,0.02455203,88028.0,88016.0,0.01136157]
[1767285445053,0.02455203,88028.0,88015.0,0.01136169]
[1767285445283,0.02455203,88028.0,88016.0,0.01136157]
[1767285445922,0.02455203,88028.0,88015.0,0.01136169]
[1767285446062,0.02455203,88028.0,88016.0,0.01136157]
[1767285446474,0.02455203,88028.0,88015.0,0.01136169]
[1767285447963,0.02455203,88028.0,88016.0,0.01136157]
[1767285449224,0.02455203,88028.0,88017.0,0.01136144]
[1767285449424,0.01136,88029.0,88016.0,0.01136157]
[1767285449624,0.01136,88029.0,88017.0,0.01136144]
[1767285449978,0.01136,88029.0,88016.0,0.01136157]
[1767285450183,0.01136,88029.0,88015.0,0.01136169]
[1767285450387,0.06153954,88029.0,88015.0,0.01136169]
[1767285451142,0.06153954,88029.0,88013.0,0.01136195]
[1767285451471,0.06153954,88029.0,88011.0,0.02272221]
[1767285451831,0.06153954,88029.0,88014.0,0.01136182]
[1767285452048,0.06153954,88029.0,88012.0,0.01136208]
[1767285452263,0.06153954,88029.0,88014.0,0.01136182]
[1767285453277,0.06153954,88029.0,88012.0,0.01136208]
[1767285456200,0.05017954,88028.0,88011.0,0.02272221]
[1767285456362,0.05017954,88028.0,88012.0,0.01136208]
[1767285456563,0.05017954,88028.0,88013.0,0.01136195]
[1767285457768,0.05017954,88028.0,88014.0,0.01136182]
[1767285458397,0.05017954,88028.0,88015.0,0.01136169]
[1767285459361,0.05017954,88028.0,88014.0,0.01136182]
[1767285460466,0.05017954,88028.0,88013.0,0.01136195]
[1767285460671,0.05017954,88028.0,88014.0,0.01136182]
[1767285461364,0.05017954,88028.0,88015.0,0.01136169]
[1767285462236,0.05017954,88028.0,88014.0,0.01136182]
[1767285462973,0.05017954,88028.0,88015.0,0.01136169]
[1767285463377,0.05017954,88028.0,88014.0,0.01136182]
[1767285463920,0.05017954,88028.0,88015.0,0.01136169]
[1767285464737,0.05017954,88028.0,88014.0,0.01136182]
[1767285464949,0.05017954,88028.0,88013.0,0.01136195]
[1767285465977,0.05017954,88028.0,88012.0,0.05911224]
[1767285467251,0.05017954,88028.0,88011.0,0.02272221]
[1767285467457,0.05017954,88028.0,88012.0,0.01136208]
[1767285467854,0.05017954,88028.0,88011.0,0.01136]
[1767285468073,0.05017954,88020.0,88008.0,0.01136]
[1767285468273,0.44383075,88018.0,88008.0,0.01136]
[1767285468545,0.01136,88019.0,88008.0,0.01136]
[1767285468546,0.06153954,88019.0,88008.0,0.01136]
[1767285470284,0.05017954,88018.0,88008.0,0.01136]
[1767285470502,0.05017954,88018.0,88002.0,0.0001462]
[1767285470718,0.02272118,88019.0,88002.0,0.0001462]
[1767285470719,0.44383075,88012.0,88002.0,0.0001462]
[1767285471118,0.45519075,88012.0,88002.0,0.0001462]
[1767285471320,0.05017954,88011.0,88002.0,0.0001462]
[1767285471479,0.05017954,88010.0,88002.0,0.0001462]
[1767285471875,0.05017954,88010.0,88000.0,0.00352273]
[1767285478682,0.04712413,88011.0,87997.0,0.00050541]
[1767285478900,0.04712413,88008.0,87997.0,0.00050541]
[1767285480041,0.04712413,88008.0,87997.0,0.00055753]
[1767285480627,0.04712413,88006.0,87997.0,0.00055753]
[1767285480822,0.04712413,88006.0,87986.0,0.07959211]
[1767285480823,0.01136324,88003.0,87990.0,0.0098646]
[1767285481022,0.44383075,88000.0,87990.0,0.0098646]
[1767285481253,0.04712413,88000.0,87990.0,0.01136492]
[1767285481453,0.04712413,88000.0,87987.0,0.01136531]
[1767285481454,0.49095488,88000.0,87989.0,0.01136505]
[1767285481650,0.49095488,88000.0,87989.0,0.01143724]
[1767285482156,0.49095488,88000.0,87989.0,7.219e-05]
[1767285482366,0.49095488,88000.0,87989.0,0.01143724]
[1767285482913,0.49095488,88000.0,87989.0,7.219e-05]
[1767285483065,0.49095488,88000.0,87989.0,0.01143724]
[1767285483446,0.49095488,88000.0,87989.0,7.219e-05]
[1767285483663,0.01136415,87996.0,87989.0,7.219e-05]
[1767285483886,0.0114,87997.0,87989.0,7.219e-05]
[1767285484126,0.02276402,87997.0,87989.0,7.219e-05]
[1767285484489,0.0114,87997.0,87989.0,7.219e-05]
[1767285487410,0.010851,87997.0,87989.0,7.219e-05]
[1767285495694,0.0114,87999.0,87990.0,0.04860282]
[1767285496905,0.0114,87999.0,87991.0,0.01136479]
[1767285497118,0.0114,87999.0,87990.0,0.04860282]
[1767285500352,0.0114,87999.0,87990.0,0.05996774]
[1767285501502,0.0114,87999.0,87990.0,0.04860282]
[1767285502122,0.0114,87999.0,87990.0,0.05996774]
[1767285502568,0.0114,87999.0,87990.0,0.04860282]
[1767285504309,0.0114,87999.0,87990.0,0.04860268]
[1767285505111,0.0114,87999.0,87990.0,0.0599676]
[1767285506316,0.0102256,88005.0,87999.0,0.00055]
[1767285506560,0.00050539,88005.0,88000.0,0.04570757]
[1767285506901,0.00050539,88005.0,88000.0,0.0570712]
[1767285507357,0.00050539,88005.0,88000.0,0.04570757]
[1767285507695,0.00050539,88005.0,87997.0,0.01136402]
[1767285508097,0.00050539,88005.0,87998.0,0.01136389]
[1767285508314,0.00050539,88005.0,87997.0,0.01136402]
[1767285508744,0.00050539,88005.0,87997.0,0.06818391]
[1767285508945,0.03412218,88012.0,88005.0,0.000505]
[1767285509146,0.04724773,88014.0,88005.0,0.000505]
[1767285509147,0.03593306,88011.0,88005.0,0.000505]
[1767285509348,0.0114,88011.0,88005.0,0.000505]
[1767285509551,0.0114,88011.0,88000.0,0.01136363]
[1767285510198,0.0114,88011.0,88001.0,0.0113635]
[1767285511958,0.45556663,88011.0,88001.0,0.0113635]
[1767285512818,0.000549,88001.0,87996.0,0.01136415]
[1767285513019,0.000549,88001.0,87996.0,0.05707172]
[1767285513275,0.45556663,88011.0,87998.0,0.01136389]
[1767285513474,0.0114,88011.0,87999.0,0.01136376]
[1767285513650,0.0114,88011.0,88000.0,0.01136363]
[1767285513853,0.44416663,88010.0,88000.0,0.01136363]
[1767285514035,0.44416663,88010.0,87999.0,0.01136376]
[1767285514236,0.44416663,88010.0,88000.0,0.01136363]
[1767285515636,0.44416663,88010.0,87999.0,0.01136376]
[1767285515948,0.44416663,88010.0,88000.0,0.01136363]
[1767285516135,0.44416663,88010.0,88001.0,0.0113635]
[1767285517961,0.44416663,88010.0,88000.0,0.01136363]
[1767285519847,0.44416663,88010.0,88001.0,0.0113635]
[1767285520883,0.44416663,88010.0,88002.0,0.01136337]
[1767285521082,0.0114,88011.0,88001.0,0.0113635]